Cogmind - Beta 16 @@@ ROGUE MODE // 2025.11.20 @ 22:05:43 Player: lvl5hm Result: Destroyed by LK-44Y(p) with EM Pulse Gun Performance ------------- Evolutions (0) 0 Regions Visited (4) 800 Robots Destroyed (35) 175 Value Destroyed (690) 690 Prototype IDs (19) 380 Alien Tech Used (0) 0 Bonus (513) 513 TOTAL SCORE: 2558 Bonus ------- Follower Combat Kills 213 Registered with UFD 300 Cogmind --------- Core Integrity 0/250 Matter 260/300 Energy 99/100 System Corruption 0% Temperature Cool (0) Movement Core (50) Location -9/Scraptown Parts ------- > --- POWER (1) -------- (None) > --- PROPULSION (2) --- (None) > --- UTILITY (2) ------ (None) > --- WEAPON (2) ------- Powered Hammer > --- INVENTORY (5) ---- Airjet Experimental Sensor Array Hacking Suite CPS Tube (2) Botcube Peak State ------------ > --- POWER ------------ (None) > --- PROPULSION ------- Cargo Legs > --- UTILITY ---------- Medium Storage Unit > --- WEAPON ----------- Powered Hammer > --- INVENTORY -------- Deuterium Engine Airjet Experimental Sensor Array Hacking Suite Hacking Suite Proton Cannon CPS Tube Botcube [Rating: 24] Favorites ----------- Power Ion Engine Engine Ion Engine Propulsion Improved Treads Treads Improved Treads Leg Cargo Legs Hover Unit Airjet Flight Unit Flight Unit Utility Seismic Detector Device Seismic Detector Storage Large Storage Unit Weapon Improved Light Cannon Energy Gun Spread Laser Ballistic Gun Light Assault Rifle Ballistic Cannon Improved Light Cannon Impact Weapon Powered Hammer Build | -11 -10 -10 -10 -9 ------- Run | Yrd Mat Min Sub Scr Slots Evolved . | . . . . . Power . | . . . . . Propulsion . | . . . . . Utility . | . . . . . Weapon . | . . . . . Parts Attached 34 | 8 12 1 4 9 Power 2 | 1 . . . 1 Engine 2 | 1 . . . 1 Core . | . . . . . Reactor . | . . . . . Propulsion 10 | 2 3 1 . 4 Treads 6 | 2 3 1 . . Leg 1 | . . . . 1 Wheel . | . . . . . Hover 2 | . . . . 2 Flight 1 | . . . . 1 Utility 8 | 3 3 . . 2 Device 5 | 2 2 . . 1 Storage 3 | 1 1 . . 1 Processor . | . . . . . Hackware . | . . . . . Protection . | . . . . . Artifact . | . . . . . Weapon 14 | 2 6 . 4 2 Energy Gun 7 | 1 4 . 2 . Energy Cannon . | . . . . . Ballistic Gun 3 | 1 2 . . . Ballistic Cannon 2 | . . . 2 . Launcher . | . . . . . Special Weapon . | . . . . . Impact Weapon 2 | . . . . 2 Slashing Weapon . | . . . . . Piercing Weapon . | . . . . . Special Melee Weapon . | . . . . . Unidentified Prototypes . | . . . . . Parts Lost 3 | . 2 . . 1 Power . | . . . . . Propulsion 1 | . . . . 1 Utility 1 | . 1 . . . Weapon 1 | . 1 . . . Highest Loss Streak 1 | . 1 . . 1 To Critical Strikes . | . . . . . Average Backups 10 | . 6 15 14 10 Power . | . . 1 1 . Propulsion 2 | . 1 3 3 3 Utility 2 | . 2 2 3 2 Weapon 3 | . 2 7 5 3 Tool/Special . | . . . . . Unused Backups 19 | . 1 3 2 13 Power 1 | . . . . 1 Propulsion 4 | . . 2 . 2 Utility 4 | . . . . 4 Weapon 8 | . 1 1 2 4 Tool/Special 2 | . . . . 2 Average Slot Usage (%) 90 | . 99 100 99 83 Engine 11 | . 14 14 14 9 Treads 22 | . 28 28 28 18 Hover 4 | . . . . 8 Device 11 | . 13 14 14 10 Storage 12 | . 14 14 14 11 Energy Gun 8 | . 19 28 11 . Ballistic Gun 1 | . 8 . . . Ballistic Cannon 12 | . . . 16 18 Impact Weapon 2 | . . . . 3 Peak Build Rating 24 | 7 13 14 16 24 Average Rating 13 | 5 9 13 15 15 On Entrance 10 | . 7 13 14 16 Avg Prop Armor Cover (%) 17 | . . . . 17 Naked Turns 9 | . . . . 9 Heaviest Build 34 | 13 32 32 34 34 Greatest Support 55 | 40 46 46 45 55 Greatest Overweight (x) 4 | . . . . 4 Average Overweight (x) . | . . . . . Largest Inventory Capacity 15 | 8 15 15 15 15 Average Capacity 12 | 7 9 15 15 12 Most Carried 15 | 1 15 15 15 15 Average Carried 10 | . 6 14 14 11 Final Capacity 15 | 8 15 15 15 5 Final Carried 15 | 1 15 15 15 5 Class Distribution -------------------- 100% | Mutant Dominant Class ---------------- Mutant | -10/Materials Mutant | -10/Mines Mutant | -10/Subcaves Mutant | -9/Scraptown Resources | -11 -10 -10 -10 -9 ----------- Run | Yrd Mat Min Sub Scr Matter Collected 1702 | 292 395 10 120 885 Remotely . | . . . . . Salvage Created 1055 | 120 829 21 85 . Parts 76 | 10 61 1 4 . Haulers Intercepted 2 | . 2 . . . Recyclers Shooed . | . . . . . Parts Field Recycled . | . . . . . Retrieved Matter . | . . . . . Parts Self-Destructed 1 | . . . 1 . Prevented . | . . . . . Parts Restored . | . . . . . Kills | -11 -10 -10 -10 -9 ------- Run | Yrd Mat Min Sub Scr Combat Hostiles Destroyed 20 | . 16 . 4 . Guns 16 | . 16 . . . Cannons 4 | . . . 4 . Classes Destroyed 11 | 2 6 1 2 . Worker 1 | . 1 . . . Builder 1 | . . 1 . . Tunneler 3 | 3 . . . . Hauler 2 | . 2 . . . Recycler 3 | 1 2 . . . Operator 2 | . 2 . . . Watcher 3 | . 3 . . . Swarmer 7 | . 6 . 1 . Grunt 10 | . 10 . . . Sentry 1 | . . . 1 . Subdweller 2 | . . . 2 . Best Kill Streak 5 | 3 5 1 2 . Combat Bots Only 3 | . 3 . 2 . Max Kills in Single Turn 1 | 1 1 1 1 . Gunslinging . | . . . . . Exploded . | . . . . . Melee . | . . . . . Uniques/NPCs Destroyed . | . . . . . Combat | -11 -10 -10 -10 -9 -------- Run | Yrd Mat Min Sub Scr Hostile Shots Fired 150 | . 98 . 17 35 Missed 51 | . 30 . 6 15 Hits 99 | . 68 . 11 20 Projectile 99 | . 68 . 11 20 Critical Strikes 1 | . . . . 1 Part Disruptions 1 | . . . . 1 Damage Taken 1197 | . 720 . 187 290 Core 257 | . 128 . 41 88 Absorbed by Shields . | . . . . . Core Remaining (%) 100 | 100 . . . . Volleys Fired 112 | 12 85 1 14 . Largest 2 | 2 2 2 2 . Hottest 130 | 60 130 130 66 . Shots Fired 221 | 24 170 2 25 . Gun 196 | 24 170 2 . . Cannon 25 | . . . 25 . Launcher . | . . . . . Special . | . . . . . Kinetic 112 | 12 75 . 25 . Thermal 109 | 12 95 2 . . Explosive . | . . . . . Electromagnetic . | . . . . . Robot Hit Streak 14 | 14 8 6 8 . Robot Miss Streak 5 | 1 5 1 2 . Penetration Max . | . . . . . Secondary Targets 1 | . 1 . . . Max Gunslinging Chain 1 | . 1 . . . Shots Hit Robots 142 | 19 106 2 15 . Core Hits 73 | 6 58 3 6 . Critical Kills . | . . . . . Critical Parts Destroyed . | . . . . . Critical Strikes . | . . . . . Melee Attacks 1 | . . . . 1 Impact 1 | . . . . 1 Slashing . | . . . . . Piercing . | . . . . . Sneak Attacks . | . . . . . Combat Hostiles . | . . . . . Follow-up Attacks . | . . . . . Damage Inflicted 1643 | 188 1101 36 318 . Guns 1325 | 188 1101 36 . . Cannons 318 | . . . 318 . Explosions . | . . . . . Melee . | . . . . . Ramming . | . . . . . Kinetic 747 | 65 364 . 318 . Thermal 896 | 123 737 36 . . Explosive . | . . . . . Electromagnetic . | . . . . . Impact . | . . . . . Slashing . | . . . . . Piercing . | . . . . . Highest Corruption . | . . . . . Average Corruption . | . . . . . Corruption Purged . | . . . . . Corruption Blocked . | . . . . . Overload Shots . | . . . . . Overflow Damage . | . . . . . Projectiles . | . . . . . Explosions . | . . . . . Melee . | . . . . . Knockbacks 1 | . . . 1 . Impact . | . . . . . Kinetic 1 | . . . 1 . Secondary . | . . . . . Self-Inflicted Damage . | . . . . . Shots . | . . . . . Rammed . | . . . . . Targets Rammed . | . . . . . Kicked . | . . . . . Crushed . | . . . . . Highest Temperature 230 | 60 230 69 . 18 Average Temperature 57 | 30 62 39 . 10 Received Heat Transfer 460 | . 288 . 39 133 Siege Activations . | . . . . . Martial Activations . | . . . . . Shielding Activations . | . . . . . Robots Disrupted . | . . . . . Combat Hostiles . | . . . . . Robots Corrupted . | . . . . . Combat Hostiles . | . . . . . Parts Fried . | . . . . . Impact Corruptions . | . . . . . Robots Melted . | . . . . . Combat Hostiles . | . . . . . Parts Melted 1 | . 1 . . . Heat Transferred 1810 | 275 1490 45 . . Parts Sabotaged . | . . . . . Parts Stolen . | . . . . . Parts Stripped . | . . . . . Power Chain Reactions . | . . . . . Alert | -11 -10 -10 -10 -9 ------- Run | Yrd Mat Min Sub Scr Maximum Alert Level . | . . . . . Low Security (%) 100 | 100 100 100 . . Level 1 . | . . . . . Level 2 . | . . . . . Level 3 . | . . . . . Level 4 . | . . . . . Level 5 . | . . . . . High Security . | . . . . . Max Security . | . . . . . Peak Influence 174 | 10 174 36 . . Initial 36 | . . 36 . . Average 64 | 1 96 2 . . Influence Increases 579 | 20 514 5 40 . Destroy 0b10 Robot/C 360 | . 320 . 40 . Destroy 0b10 Robot/NC 75 | 20 50 5 . . Destroy Leader 80 | . 80 . . . Successful Hack 4 | . 4 . . . Select Force Hacks 30 | . 30 . . . Lose Combat Pursuer 30 | . 30 . . . Influence Decreases 579 | 20 421 98 40 . Entered New Map 57 | . . 57 . . Time Decay 502 | 20 401 41 40 . Lost Part 20 | . 20 . . . Squads Dispatched 5 | . 4 1 . . Investigation 3 | . 2 1 . . Extermination . | . . . . . Reinforcement 2 | . 2 . . . Assault . | . . . . . Garrison . | . . . . . Intercept . | . . . . . Searches Triggered . | . . . . . Construction Impeded . | . . . . . Haulers Reinforced . | . . . . . Active Scanning Responses . | . . . . . Cargo Convoy Interrupts . | . . . . . Stealth | -11 -10 -10 -10 -9 --------- Run | Yrd Mat Min Sub Scr Distress Signals 1 | . 1 . . . Communications Jammed . | . . . . . Distress Signals . | . . . . . Times Spotted 40 | . 29 . 4 7 Peak Tracking Total 10 | . 3 . 2 10 Tactical Retreats 2 | . 2 . . . Traps | -11 -10 -10 -10 -9 ------- Run | Yrd Mat Min Sub Scr Traps Triggered 2 | . 2 . . . Indirectly . | . . . . . Trap Hack Attempts . | . . . . . Triggered . | . . . . . Disarmed . | . . . . . Reprogrammed . | . . . . . Reused . | . . . . . Traps Extracted . | . . . . . Installed . | . . . . . Triggered . | . . . . . Machines | -11 -10 -10 -10 -9 ---------- Run | Yrd Mat Min Sub Scr Machines Disabled 3 | . . . 1 2 Max in Single Turn 1 | . . . 1 1 Machines Repaired . | . . . . . Machines Dismantled . | . . . . . Machines Sabotaged . | . . . . . Overloaded Fab Kills . | . . . . . Hacking | -11 -10 -10 -10 -9 --------- Run | Yrd Mat Min Sub Scr Machines Accessed 9 | . 2 1 1 5 Terminals 1 | . 1 . . . Fabricators . | . . . . . Repair Stations . | . . . . . Recycling Units 1 | . 1 . . . Scanalyzers . | . . . . . Garrison Access . | . . . . . Total Hacks 16 | . 2 1 1 12 Successful 16 | . 2 1 1 12 Failed . | . . . . . Catastrophic . | . . . . . Database Lockouts . | . . . . . Manual 1 | . 1 . . . Terminals 1 | . 1 . . . Fabricators . | . . . . . Repair Stations . | . . . . . Recycling Units 1 | . 1 . . . Scanalyzers . | . . . . . Garrison Access . | . . . . . Terminal Hacks 15 | . 1 1 1 12 Record 8 | . . . . 8 Robot Analysis 4 | . . . . 4 Open Door 1 | . . 1 . . Locate Traps 1 | . 1 . . . Proto ID Catalog 1 | . . . 1 . Fabricator Hacks . | . . . . . Repair Station Hacks . | . . . . . Recycling Unit Hacks . | . . . . . Scanalyzer . | . . . . . Garrison Access Hacks . | . . . . . Unauthorized Hacks 1 | . 1 . . . Terminals . | . . . . . Fabricators . | . . . . . Repair Stations . | . . . . . Recycling Units 1 | . 1 . . . Tunnel 1 | . 1 . . . Scanalyzers . | . . . . . Garrison Access . | . . . . . Data Cores Recovered . | . . . . . Used . | . . . . . Hacking Detections 1 | . 1 . . . Full Trace Events . | . . . . . Feedback Events . | . . . . . Feedback Blocked . | . . . . . Robot Schematics Acquired . | . . . . . Robots Built . | . . . . . Authchips . | . . . . . Time . | . . . . . Total Robot Build Rating . | . . . . . Part Schematics Acquired 1 | . . . . 1 Parts Built . | . . . . . Authchips . | . . . . . Time . | . . . . . Total Part Build Rating . | . . . . . Part Studies Acquired . | . . . . . Parts Repaired . | . . . . . Time . | . . . . . Parts Recycled . | . . . . . Recycled Matter . | . . . . . Retrieved Matter . | . . . . . Retrieved Components . | . . . . . Parts Scanalyzed . | . . . . . Part Schematics Acquired . | . . . . . Parts Damaged . | . . . . . Bothacking | -11 -10 -10 -10 -9 ------------ Run | Yrd Mat Min Sub Scr Used RIF Installer . | . . . . . Robots Hacked . | . . . . . Non-combat . | . . . . . Combat . | . . . . . Robot Hacks Applied . | . . . . . Relay Couplers Released . | . . . . . Fabnet Peak Effective % . | . . . . . Robots Rewired . | . . . . . Allies Hacked . | . . . . . Hacks Repelled . | . . . . . Allies | -11 -10 -10 -10 -9 -------- Run | Yrd Mat Min Sub Scr Total Allies 5 | . . . . 5 Largest Group 5 | . . . . 5 Highest-Rated Group 235 | . . . . 235 Highest-Rated Ally 47 | . . . . 47 Total Orders . | . . . . . Ally Attacks 57 | . . . . 57 Total Damage 1057 | . . . . 1057 Kills 10 | . . . . 10 Allies Corrupted . | . . . . . Allies Melted . | . . . . . Intel | -11 -10 -10 -10 -9 ------- Run | Yrd Mat Min Sub Scr Active Infowar (turns) 5122 | 58 1469 617 462 2516 Seismic 5122 | 58 1469 617 462 2516 Robot Analysis Total 4 | . . . . 4 Derelict Logs Recovered 3 | . . 1 . 2 Drone Launches . | . . . . . Drone Recoveries . | . . . . . Exploration | -11 -10 -10 -10 -9 ------------- Run | Yrd Mat Min Sub Scr Turns Passed 6464 | 146 1516 617 462 3723 Spaces Moved 5098 | 64 759 346 263 3666 Core 60 | 1 . . . 59 Treads 3085 | 63 759 346 263 1654 Legs 9 | . . . . 9 Wheels . | . . . . . Hover 1517 | . . . . 1517 Flight 427 | . . . . 427 Fastest Speed 40 | 50 160 152 152 40 Average Speed 114 | 158 160 152 152 97 Slowest Speed 250 | 160 160 160 152 250 Overloaded Moves . | . . . . . Propulsion Burnouts . | . . . . . Robots Hopped . | . . . . . Potential Cave-ins . | . . . . . Cave-ins Triggered . | . . . . . Exploration Rate (%) 52 | 5 97 49 18 91 Regions Visited 4 Branch Regions 3 Pre-discovered Areas 2 | . 1 . 1 . Known Exits Taken . | . . . . . Unknown Exits Taken 4 | 1 1 1 1 . Scrap Searched 12 | . . 1 1 10 Spaces Dug . | . . . . . Terrain Destroyed . | . . . . . Melee . | . . . . . Projectile . | . . . . . AOE . | . . . . . Terrain Rammed . | . . . . . Walls Destroyed . | . . . . . Machines Disabled . | . . . . . Actions | -11 -10 -10 -10 -9 --------- Run | Yrd Mat Min Sub Scr Total 5541 | 83 911 435 301 3811 Wait 221 | . 20 83 14 104 Move 5094 | 63 758 345 262 3666 Hop . | . . . . . Pick Up 35 | . 20 2 2 11 Fast Attach 21 | 7 5 . 2 7 Attach 6 | . 2 . . 4 Detach 7 | . 2 . . 5 Swap 10 | 1 6 1 2 . Drop 34 | . 13 3 5 13 Fire 112 | 12 85 1 14 . Melee 1 | . . . . 1 Ram . | . . . . . Kick . | . . . . . Crush . | . . . . . Escape Stasis . | . . . . . Rewire . | . . . . . Trap . | . . . . . Miscellaneous . | . . . . . Route ------- -11/Scrapyard -10/Materials (discovered 5 exits: [*Mat x3] / *Min / *Sub) -10/Mines -10/Subcaves (discovered 2 exits: [*Mat] / *Scr) -9/Scraptown (discovered 1 exit: [*Fac]) History --------- Turn | Location | Event 37 | -11/Scrapyard | Discovered new exit (range 16) 147 | -11/Scrapyard | Entered Materials 300 | -10/Materials | Build established: Mutant 479 | -10/Materials | Discovered new exit (range 12) 646 | -10/Materials | Discovered new exit (range 5) 1141 | -10/Materials | Discovered new exit (range 15) 1168 | -10/Materials | Discovered new exit (range 8) 1252 | -10/Materials | Core integrity fell below 50% 1287 | -10/Materials | Discovered new exit (range 7) 1663 | -10/Materials | Entered Mines 1669 | -10/Mines | Met a Derelict shopkeep closing up shop 2088 | -10/Mines | Discovered new exit (range 8) 2175 | -10/Mines | Learned Materials emergency access door positions 2280 | -10/Mines | Entered Subcaves 2281 | -10/Subcaves | Approached by a straggling Scientist 2330 | -10/Subcaves | Learned location of Zion (-6) 2330 | -10/Subcaves | Met a Zionite searching for "candidates" 2422 | -10/Subcaves | Visited 4L-MR0's lab 2437 | -10/Subcaves | Found Cargo Legs 2498 | -10/Subcaves | Discovered new exit (range 8) 2742 | -10/Subcaves | Entered Scraptown 3012 | -9/Scraptown | Scanned Subdweller tech in exchange for log data 3016 | -9/Scraptown | Learned 8 Factory zone layouts 3018 | -9/Scraptown | Learned Factory emergency access door positions 3040 | -9/Scraptown | Discovered new exit (range 5) 3203 | -9/Scraptown | Visited The Evicted 3271 | -9/Scraptown | Visited IN-MT5's Study 3379 | -9/Scraptown | Visited Assassins FH 3402 | -9/Scraptown | Visited Cyclists 3562 | -9/Scraptown | Heard Great Nut preacher, LISTEN AND RECITE! 3767 | -9/Scraptown | Visited UFD Registry 3787 | -9/Scraptown | Registered with UFD as "Gaussblaster" 3831 | -9/Scraptown | Visited Chapter 10 3864 | -9/Scraptown | Visited Analyses Database 3898 | -9/Scraptown | Visited DA-N13 Charitable Foundation 3920 | -9/Scraptown | Found DCF Scrap (28 items) 3949 | -9/Scraptown | Visited Infowarlord's Domain 4194 | -9/Scraptown | Visited Scrapoid Pod Storage 4237 | -9/Scraptown | Visited Junk Repository 4284 | -9/Scraptown | Visited Scrap Suit Storage 4342 | -9/Scraptown | Visited Abandonware Association 4361 | -9/Scraptown | Learned abandonware demo "SHUTEYE.EXE" 4407 | -9/Scraptown | Visited Junk Repository 4463 | -9/Scraptown | Visited Botcube Research 4667 | -9/Scraptown | Entered Cyclist Reading Room 4775 | -9/Scraptown | Visited Bundlers 4890 | -9/Scraptown | Visited Red Mages 5100 | -9/Scraptown | Guru changed UFD alias to "Gunguard" 5401 | -9/Scraptown | Found Botcube 5435 | -9/Scraptown | Visited Comm Corps 5521 | -9/Scraptown | Found Exp. Sensor Array 5597 | -9/Scraptown | Found Scrapoid Pod 6054 | -9/Scraptown | Scrapoid Pod released 09S05-D (x5) 6420 | -9/Scraptown | Attacked by Scraptown defenders 6440 | -9/Scraptown | Attached Cargo Legs, gained temporary slots: Utility x2 6445 | -9/Scraptown | Core integrity fell below 20% 6465 | -9/Scraptown | Destroyed by LK-44Y(p) with EM Pulse Gun Last Messages --------------- 06438_ Acquired 65 matter. 06438_ Acquired 80 matter. 06438_ Airjet destroyed. 06438_ Slug penetrates DS-KGJ(k). 06438_ Slug penetrates Wall. 06440_ Bolt penetrates 09S04-D. 06440_ Slug penetrates H5-VSQ(k). 06440_ H5-VSQ(k) destroyed. 06440_ Core temporarily expanded with Utility slot. 06441_ Slug penetrates Wall. 06443_ Q7-G9T(o) destroyed. 06444_ 09S04-D destroyed. 06445_ 35-3I8(j) heat damages Mak. Microdissipator Network. 06445_ Slug penetrates AD-1DZ(c). 06452_ Machine disabled. 06452_ Dropped Med. Storage Unit. 06452_ Discarded Cargo Legs. 06453_ Temporary Utility slot lost. Map ----- +----------------------------------------------------+ | | | | | | | | | | | | | | | | | | | | | | | | | | | | | ?????????????????????????????????????????????????? | | ???????##?????????????????#########??????????????? | | ???????""?????????????????#"" ##?????????????? | | ?##" ?? "????????????????#" < #?############# | | ?? """ "?????#######????#"" ###"""""""""#""" | | ??#" """ "#????"""""""#???##### #?#" "#" | | ??#" """ "#???#"" ""#???????# #?#" | | ??#" "#???#"" ""#???????# #?#" "#" | | ###""" """###?#""" ""#???????# #?#" """ "#" | | # #?#"" ""#??????#" ###" "#" | | " ###""" """######## ##"""""" ""#"" | | " @ c | | " | | p c | | " ###### ###########j c ;#########"" "" | | " ###### ######????##j= #;#???????#" ! | | " #""""" """""#####?#%[c;;#######?#" =/ | | # #" " " #?#!* """"""#?#" " | | ### #""" ""#" " " "### ### ""#?#" " | | ??# #""" "#" " " "#""*""" "#?#""""" | | ??# #""" "#""""" """""#"!!""" ""#?###### | | ??# #"" "###### ######" ] = """""""#??????? | | ??# #" "#""""" """""#" /*%=#"""####??????# | | ??# #?"" ""#" " " "#" "" "=%!"##############" | | ??# #?## ###" " " "#" " * "#?###"""""""##" | | ??# #??# " " "#"""""" *##?# " "##" | | ??# #??#####""""" """""####### [%"#?###" "##" | | ?## =##?????###### ######?????# =##?# " ""##" | | ?# =/!############ ###########!! !#### " """##" | | ?#]=! != |%= =[" # " ""##" | | ?# ]* =* !=[!= " ## " "##" | | ?# ] ###########"""#""####"#"* = ####""" "##" | | ?## ##???????????#???????####!![ ##?# ##" | | ### ########???#############"%* "######### ##### | | """ """""""#????"""""""" #!%!= | | """ " ] "#??####""" """ #!=[* | +----------------------------------------------------+ Best States ------------- Heat Dissipation 25 Energy Generation 14 Energy Capacity 275 Matter Stores 300 Matter Capacity 300 Sight Range 16 Terrain Scan Density 10 Evasion (%) 62 Recoil Reduction 2 Item Schematics ----------------- IN-MT5's Pitchfork "Insurrection" | -9/Scraptown | Archive Robot Schematics ------------------ None Fabricated ------------ Nothing Repaired ---------- Nothing Studied --------- None Alien Tech Used ----------------- None Achievements -------------- None Challenges ------------ None Game ------ Seed ServoControlDiverter Manual? 0 Play Time 00:41:08 Cumulative 241.9 hours Start 2025.11.20 @ 18:53:35 End 2025.11.20 @ 22:05:43 Sessions 2 Manual Loads 0 Difficulty Rogue Special Mode None Game No. 179 Rogue 179 Adventurer 0 Explorer 0 Win Type - Total 11 Types 6/0/2/1/0/0/0/1/0/1 Lore% 64 Gallery% 73 Achievement% 66 Wizard Run 0 Options --------- Layout 2 ASCII 0 Keyboard 1 Movement Arrows Keybinds 0 Fullscreen 1 Font 32/Tamsyn Map View 50x44 Zoom Use 0% Tactical HUD 1 Map Filters NONE Filters NONE Steam 1 RUN: b0726ded-c02c-4487-9a0e-e563dd280aa1